bitfinex-derivatives/quotes_SOLF0:USTF0_20251125
["timestamp","ask_amount","ask_price","bid_price","bid_amount"]
[1764110634552,3.03,138.49,138.47,1.81758161]
[1764110634742,3.03,138.49,138.47,0.05283674]
[1764110634938,3.03,138.49,138.47,1.81740781]
[1764110635144,9.5317,138.49,138.47,0.05283674]
[1764110635350,3.03,138.48,138.47,1.81725954]
[1764110635655,3.03,138.48,138.47,0.05283674]
[1764110637851,3.0821716,138.49,138.47,0.05283674]
[1764110641456,3.0821716,138.49,138.48,1.76333089]
[1764110642152,2.99,138.53,138.48,8.26503089]
[1764110642353,2.99,138.53,138.49,1.76361514]
[1764110642758,2.99,138.53,138.5,6.5011]
[1764110643355,3.03783409,138.53,138.51,6.5007]
[1764110644357,0.04783409,138.53,138.51,6.5007]
[1764110644952,0.04783409,138.53,138.52,1.7634318]
[1764110647552,0.04783409,138.53,138.51,6.5007]
[1764110648966,0.04783409,138.53,138.52,1.76354093]
[1764110649659,3.03783409,138.53,138.52,1.76354093]
[1764110649864,3.03783409,138.53,138.5,0.04988035]
[1764110652467,3.03783409,138.53,138.5,6.55098035]
[1764110667169,7.14402479,138.53,138.5,0.04988035]
[1764110667373,2.86,138.52,138.5,0.04988035]
[1764110668866,2.86,138.49,138.44,6.5390139]
[1764110669071,2.86,138.49,138.45,1.7678467]
[1764110669272,2.86,138.46,138.4,13.0446139]
[1764110669467,2.86,138.43,138.42,1.76885206]
[1764110669671,2.86,138.43,138.36,6.5390139]
[1764110669872,2.86,138.4,138.38,0.04653481]
[1764110671278,2.86,138.37,138.3,6.5390139]
[1764110671577,2.86,138.37,138.33,1.76686113]
[1764110671979,2.86,138.36,138.33,1.76686113]
[1764110672180,2.91148487,138.36,138.33,1.82175652]
[1764110672489,2.91148487,138.36,138.33,0.05489539]
[1764110672774,2.91148487,138.36,138.33,1.81906474]
[1764110672969,2.91148487,138.36,138.33,0.05489539]
[1764110673169,2.86,138.34,138.33,0.05489539]
[1764110673577,2.86,138.34,138.28,6.5114]
[1764110673774,2.86,138.34,138.31,1.76207342]
[1764110674678,2.90872316,138.34,138.31,1.81338063]
[1764110674878,2.90872316,138.34,138.31,0.05130721]
[1764110675079,2.90872316,138.34,138.31,1.81112786]
[1764110675281,2.90872316,138.34,138.31,0.05130721]
[1764110675476,2.90872316,138.34,138.32,1.75737582]
[1764110676483,2.90872316,138.34,138.33,1.75737582]
[1764110676777,2.90872316,138.34,138.31,0.05130721]
[1764110676984,2.90872316,138.34,138.33,1.75533993]
[1764110677485,2.90872316,138.34,138.32,1.75533993]
[1764110677786,2.90872316,138.34,138.31,0.05130721]
[1764110677981,0.04872316,138.34,138.32,1.75434026]
[1764110678182,0.04872316,138.34,138.33,1.75434026]
[1764110678384,0.04872316,138.34,138.31,0.05130721]
[1764110678582,0.04872316,138.34,138.33,1.75291557]
[1764110679177,0.04872316,138.34,138.31,6.56120721]
[1764110680586,0.04872316,138.34,138.33,1.75120138]
[1764110690195,0.04872316,138.34,138.32,1.75120138]
[1764110690395,0.04872316,138.34,138.31,6.56120721]
[1764110690695,0.04872316,138.34,138.32,1.74443362]
[1764110693200,0.04872316,138.34,138.33,1.74443362]
[1764110693696,2.98872316,138.34,138.33,1.74443362]
[1764110693893,2.98872316,138.34,138.31,0.05130721]
[1764110694099,2.98872316,138.34,138.32,1.74549176]
[1764110694286,2.98872316,138.34,138.31,0.05130721]
[1764110694703,2.94,138.32,138.31,0.05130721]
[1764110699392,2.94,138.33,138.31,0.05130721]
[1764110700399,6.55772316,138.34,138.31,0.05130721]
[1764110700400,0.04872316,138.34,138.32,1.74690218]
[1764110701197,0.04872316,138.34,138.33,1.74690218]
[1764110701401,0.04872316,138.34,138.32,6.5096]
[1764110701603,0.04872316,138.34,138.33,1.74592676]
[1764110706495,2.98872316,138.34,138.33,1.74592676]
[1764110706899,27.96,138.4,138.38,6.5067]
[1764110707198,101.1475,138.48,138.37,101.2239]
[1764110707199,2.94,138.43,138.37,101.2239]
[1764110707406,5.02393298,138.45,138.4,101.2018]
[1764110707604,5.02393298,138.47,138.43,6.5043]
[1764110707801,2.94,138.48,138.41,101.1951]
[1764110708004,0.05549308,138.46,138.43,0.05530708]
[1764110708611,0.05549308,138.46,138.44,6.5039]
[1764110709108,0.05549308,138.46,138.45,1.74828214]
[1764110711397,0.05549308,138.46,138.44,6.5039]
[1764110712610,7.96393298,138.5,138.45,6.5033]
[1764110712812,7.96393298,138.5,138.46,1.75051317]
[1764110713310,7.96393298,138.5,138.43,103.81221759]
[1764110713311,7.96393298,138.5,138.47,1.75051317]
[1764110713506,8.01168459,138.5,138.47,1.80139235]
[1764110713703,2.98775161,138.5,138.47,0.05087918]
[1764110714010,8.01168459,138.5,138.47,1.80152274]
[1764110714310,2.98775161,138.5,138.47,0.05087918]
[1764110714514,0.04775161,138.5,138.47,1.80076608]
[1764110714710,0.04775161,138.5,138.47,0.05087918]
[1764110715010,0.04775161,138.5,138.47,1.80076453]
[1764110715204,0.04775161,138.5,138.47,0.05087918]
[1764110715513,0.04775161,138.5,138.47,1.79963434]
[1764110715714,0.04775161,138.5,138.47,0.05087918]
[1764110715913,0.04775161,138.5,138.47,1.79963434]
[1764110716207,0.04775161,138.5,138.47,0.05087918]
[1764110716415,0.04775161,138.5,138.47,1.79830604]
[1764110716603,0.04775161,138.5,138.47,0.05087918]
[1764110716808,0.04775161,138.5,138.47,1.79830604]
[1764110717112,0.04775161,138.5,138.47,0.05087918]
[1764110717311,0.04775161,138.5,138.47,1.79706063]
[1764110717524,0.04775161,138.5,138.47,0.05087918]
[1764110717714,0.04775161,138.5,138.47,1.79684386]
[1764110718011,0.04775161,138.5,138.47,0.05087918]
[1764110718213,0.04775161,138.5,138.47,1.79684403]
[1764110718606,0.04775161,138.5,138.47,0.05087918]
[1764110718909,0.04775161,138.5,138.47,1.79594956]
[1764110719215,0.04775161,138.5,138.47,6.55327918]
[1764110719405,0.04775161,138.5,138.47,0.05087918]
[1764110719712,0.04775161,138.5,138.47,1.79546197]
[1764110719906,0.04775161,138.5,138.47,0.05087918]
[1764110720112,0.04775161,138.5,138.47,1.79546091]
[1764110720311,0.04775161,138.5,138.48,6.502]
[1764110725320,0.04775161,138.5,138.49,1.74014076]
[1764110725818,0.04775161,138.5,138.48,6.502]
[1764110729724,3.14775161,138.5,138.47,0.05087918]
[1764110729922,3.14775161,138.5,138.48,1.73755172]
[1764110730123,3.14775161,138.5,138.47,0.05087918]
[1764110731327,3.1,138.48,138.47,0.05087918]
[1764110732817,28.12775161,138.5,138.47,0.05087918]
[1764110733320,3.1,138.49,138.47,0.05087918]
[1764110734025,9.6017,138.49,138.47,0.05087918]
[1764110734224,3.1,138.48,138.47,0.05087918]
[1764110740831,6.5017,138.49,138.41,6.5051]
[1764110740832,3.1,138.46,138.41,6.5051]
[1764110741031,3.1,138.45,138.43,1.74353033]
[1764110741329,3.1,138.45,138.42,1.74353033]
[1764110741523,3.1,138.44,138.42,1.74353033]
[1764110741722,3.1,138.44,138.42,1.79458373]
[1764110741723,3.14701407,138.44,138.42,1.79458373]
[1764110741923,3.14701407,138.44,138.42,0.0510534]
[1764110742124,3.14701407,138.44,138.42,1.79623092]
[1764110742331,3.14701407,138.44,138.42,0.0510534]
[1764110742524,3.14701407,138.44,138.42,1.79759199]
[1764110742722,3.14701407,138.44,138.42,0.0510534]
[1764110743029,3.1,138.43,138.42,1.79759276]
[1764110743220,3.1,138.43,138.42,0.0510534]
[1764110743423,3.1,138.43,138.42,1.79917433]
[1764110743623,3.1,138.43,138.34,107.76331897]
[1764110743921,3.1,138.43,138.34,101.2475]
[1764110744427,3.1,138.41,138.36,6.5078]
[1764110744630,3.1,138.41,138.4,1.75057808]
[1764110745539,3.1,138.41,138.39,1.75057808]
[1764110745540,9.6054,138.41,138.39,1.75057808]
[1764110745827,3.1,138.39,138.38,1.75057808]
[1764110746037,3.1,138.39,138.38,1.75151847]
[1764110746827,3.1,138.39,138.38,0.00151847]
[1764110747032,3.1,138.39,138.37,0.04596085]
[1764110747836,7.93939365,138.38,138.37,0.04596085]
[1764110748030,2.89,138.38,138.37,0.04596085]
[1764110748231,7.93939365,138.38,138.37,0.04596085]
[1764110749129,6.5079,138.36,138.27,110.44553656]
[1764110749327,2.89,138.34,138.32,1.7541608]
[1764110750133,2.93814573,138.34,138.32,1.77751762]
[1764110750335,2.93814573,138.34,138.32,0.02335682]
[1764110750535,2.93814573,138.34,138.32,1.77703285]
[1764110750838,2.93814573,138.34,138.32,0.02335682]
[1764110751036,2.93814573,138.34,138.32,1.7774625]
[1764110751238,2.93814573,138.34,138.32,0.02335682]
[1764110751437,2.93814573,138.34,138.32,1.77698842]
[1764110751638,2.93814573,138.34,138.32,0.02335682]
[1764110751834,2.93814573,138.34,138.32,1.77722401]
[1764110752027,2.93814573,138.34,138.32,0.02335682]
[1764110752237,2.93814573,138.34,138.32,1.77731407]
[1764110752635,2.93814573,138.34,138.32,0.02335682]
[1764110753037,7.93939365,138.33,138.32,0.02335682]
[1764110753234,2.89,138.33,138.32,0.02335682]
[1764110753640,2.89,138.33,138.32,0.00335682]
[1764110754134,5.52421759,138.33,138.32,0.00335682]
[1764110759645,2.89,138.29,138.23,6.5135]
[1764110759848,2.89,138.27,138.26,1.74391958]
[1764110760245,2.89,138.27,138.19,101.3551]
[1764110760246,2.89,138.27,138.25,1.74391958]
[1764110760544,2.93914138,138.27,138.21,6.5145]
[1764110760747,2.93914138,138.27,138.24,1.74449001]
[1764110761332,2.92,138.25,138.23,1.74449001]
[1764110761542,2.92,138.25,138.19,6.5154]
[1764110761543,2.92,138.23,138.19,6.5154]
[1764110761731,2.92,138.23,138.21,1.74350237]
[1764110761935,2.9739469,138.23,138.21,1.74350237]
[1764110762135,2.92,138.22,138.21,1.74350237]
[1764110763944,2.92,138.22,138.2,1.74350237]
[1764110764142,2.92,138.22,138.16,6.517]
[1764110764348,2.92,138.22,138.2,1.73849358]
[1764110764845,2.92,138.21,138.19,1.73849358]
[1764110766248,2.92,138.21,138.16,6.517]
[1764110766544,0.05386527,138.2,138.18,1.73718083]
[1764110766745,2.97386527,138.2,138.18,1.73718083]
[1764110769953,0.05386527,138.2,138.18,1.73718083]
[1764110770246,0.05386527,138.2,138.17,1.73718083]
[1764110770445,2.97386527,138.2,138.16,6.517]
[1764110770653,2.97386527,138.2,138.12,105.53111037]
[1764110770654,2.97386527,138.2,138.17,1.73303642]
[1764110773257,0.05386527,138.2,138.17,1.73303642]
[1764110773458,9.48926527,138.2,138.17,1.73303642]
[1764110773652,2.92,138.19,138.17,1.73303642]
[1764110774547,9.4359,138.19,138.13,6.5182]
[1764110774746,9.4359,138.19,138.16,1.73345185]
[1764110774948,2.92,138.18,138.15,1.73345185]
[1764110775145,2.97003216,138.18,138.15,1.73375893]
[1764110775551,2.92,138.16,138.15,1.73375893]
[1764110777158,2.92,138.16,138.14,1.73375893]
[1764110777357,2.96813592,138.16,138.14,1.73436096]
[1764110778856,2.96813592,138.16,138.13,1.73436096]
[1764110779159,2.96771419,138.16,138.13,1.73436096]
[1764110779462,2.87,138.14,138.13,1.73436096]
[1764110780259,2.87,138.14,138.12,1.73436096]
[1764110781759,2.87,138.13,138.11,1.73436096]
[1764110782063,2.92387056,138.13,138.11,1.73436096]
[1764110782969,2.92387056,138.13,138.12,1.73436096]
[1764110783666,2.92387056,138.13,138.05,101.4567]
[1764110783867,2.92387056,138.13,138.11,1.73814853]
[1764110784657,2.92387056,138.13,138.1,1.73814853]
[1764110784862,2.92387056,138.13,138.11,1.73814853]
[1764110785570,2.92387056,138.13,138.1,1.73814853]
[1764110786563,2.92387056,138.13,138.09,1.73814853]
[1764110786769,2.87,138.11,138.08,1.73814853]
[1764110786969,2.92427595,138.11,138.08,1.73814853]
[1764110787269,2.87,138.09,138.08,1.73814853]
[1764110787971,27.87,138.09,138.08,1.73814853]
[1764110789674,2.87,138.08,138.06,1.73814853]
[1764110789868,2.9197252,138.08,138.06,1.73814853]
[1764110791078,2.9197252,138.08,138.05,1.73814853]
[1764110791277,2.87,138.06,138.05,1.74760706]
[1764110791774,2.87,138.04,137.99,6.5249]
[1764110792076,2.91655957,138.03,137.94,101.5399]
[1764110792279,0.05343826,138.0,137.93,101.5453]
[1764110792664,2.92343826,138.0,137.98,1.75061351]
[1764110793275,0.05343826,138.0,137.98,1.75061351]
[1764110794873,0.05343826,138.0,137.99,1.75061351]
[1764110795075,0.05343826,138.0,137.95,101.5294]
[1764110795271,0.05343826,138.0,137.99,1.74789834]
[1764110796171,0.05343826,138.0,137.95,101.5294]
[1764110796370,0.05343826,138.0,137.98,1.7484361]
[1764110796779,0.05343826,138.0,137.99,1.7484361]
[1764110796979,0.05343826,138.0,137.96,6.5263]
[1764110797178,0.05343826,138.0,137.98,1.7484713]
[1764110798481,0.05343826,138.0,137.97,1.7484713]
[1764110798684,2.87,137.99,137.97,1.7484713]
[1764110802190,2.87,137.99,137.94,6.5272]
[1764110802388,2.87,137.99,137.96,1.7493997]
[1764110806384,0.05343826,138.0,137.96,1.7493997]
[1764110806590,0.05343826,138.0,137.93,101.5427]
[1764110806591,0.05343826,138.0,137.98,1.7493997]
[1764110806781,0.05343826,138.0,137.99,1.7493997]
[1764110806986,25.02,138.04,137.98,101.5116]
[1764110807279,25.02,138.04,138.0,1.7483205]
[1764110807991,25.02,138.04,138.01,6.57386005]
[1764110807992,0.05168151,138.03,138.01,6.57386005]
[1764110808181,0.05168151,138.03,138.01,0.04976005]
[1764110809594,0.05168151,138.03,138.01,0.04976005]
[1764110809788,0.05168151,138.03,138.02,1.7493322]
[1764110810092,0.05168151,138.03,138.01,6.57376005]
[1764110813489,0.05168151,138.03,138.02,1.75215512]
[1764110813892,0.05168151,138.03,138.01,0.04976005]
[1764110820406,0.05168151,138.03,138.02,1.75693638]
[1764110820798,2.98,138.09,138.01,101.53406005]
[1764110821002,2.98,138.09,138.03,1.75618359]
[1764110821202,2.98,138.09,138.04,1.75618359]
[1764110821402,2.98,138.09,138.01,101.4843]
[1764110821702,2.98,138.09,138.04,8.27940184]
[1764110821895,3.03194506,138.08,138.05,0.05212152]
[1764110822203,3.03194506,138.08,138.05,6.57432152]
[1764110822801,3.03194506,138.08,138.05,0.05212152]
[1764110824503,0.05194506,138.08,138.06,1.75800074]
[1764110824999,0.05194506,138.08,138.06,6.5218]
[1764110825403,5.02830367,138.13,138.05,101.50902152]
[1764110825702,8.00830367,138.13,138.09,1.75755071]
[1764110826000,2.98,138.12,138.09,1.75755071]
[1764110826398,3.02637357,138.12,138.09,1.80945295]
[1764110826599,3.02637357,138.12,138.09,0.05190224]
[1764110826801,3.02637357,138.12,138.09,1.8093113]
[1764110826999,3.02637357,138.12,138.09,0.05190224]
[1764110827208,3.02637357,138.12,138.09,1.80931094]
[1764110827403,5.67047201,138.12,138.09,0.05190224]
[1764110827608,2.98,138.11,138.09,1.80969214]
[1764110827808,2.98,138.11,138.09,0.05190224]
[1764110828008,2.98,138.11,138.09,1.80974165]
[1764110828305,2.98,138.11,138.09,0.05190224]
[1764110828608,5.62409844,138.11,138.09,0.05190224]
[1764110828908,2.98,138.1,138.09,0.05190224]
[1764110829605,8.00830367,138.1,138.01,104.12839844]
[1764110829808,2.98,138.08,138.06,1.75849627]
[1764110829996,8.00830367,138.08,137.99,104.14589844]
[1764110830204,2.98,138.06,138.04,1.75896258]
[1764110830606,3.03332079,138.06,138.04,1.81049837]
[1764110830804,3.03332079,138.06,138.04,0.05153579]
[1764110831104,2.98,138.05,138.04,1.8113099]
[1764110831304,2.98,138.05,138.04,0.05153579]
[1764110832207,8.00830367,138.05,138.04,0.05153579]
[1764110835302,5.02830367,138.05,138.04,0.05153579]
[1764110835508,5.08162446,138.06,138.04,0.05153579]
[1764110835695,0.05332079,138.06,138.04,0.05153579]
[1764110835900,0.05332079,138.06,138.04,6.57433579]
[1764110836101,0.05332079,138.06,138.05,1.7634193]
[1764110838312,5.02830367,138.09,138.04,101.51613579]
[1764110838503,2.64409844,138.11,138.07,1.76295812]
[1764110838704,5.02830367,138.11,138.08,8.28385812]
[1764110839008,5.02830367,138.12,138.09,1.76247558]
[1764110839209,0.05067957,138.12,138.09,1.81535259]
[1764110839512,0.05067957,138.12,138.1,1.76126352]
[1764110839817,0.05067957,138.12,138.11,1.76126352]
[1764110840006,0.05067957,138.12,138.1,6.5199]
[1764110840207,0.05067957,138.12,138.11,1.76060961]
[1764110840512,0.05067957,138.12,138.1,6.5199]
[1764110841213,5.05550888,138.18,138.13,101.4005]
[1764110841411,5.05550888,138.19,138.16,1.75670934]
[1764110841615,5.05550888,138.22,138.17,6.5166]
[1764110842007,7.90550888,138.22,138.18,1.75559413]
[1764110842209,2.90401293,138.21,138.19,0.05331624]
[1764110843006,9.41901293,138.21,138.19,0.05331624]
[1764110843213,2.85,138.2,138.19,0.05331624]
[1764110843507,5.49409844,138.2,138.19,0.05331624]
[1764110844304,12.00959844,138.2,138.14,6.5178]
[1764110844514,2.85,138.19,138.17,1.75159381]
[1764110845212,2.85,138.19,138.17,1.80264887]
[1764110845516,2.85,138.19,138.17,0.05105506]
[1764110845706,2.85,138.19,138.17,1.8017979]
[1764110845910,2.85,138.19,138.17,0.05105506]
[1764110846212,2.85,138.19,138.17,1.80117815]
[1764110846415,2.85,138.18,138.17,0.05105506]
[1764110852311,2.85,138.17,138.06,101.4488]
[1764110852516,2.85,138.15,138.12,1.74915747]
[1764110852707,2.85,138.14,138.12,1.74915747]
[1764110852913,2.85,138.13,138.07,6.5213]
[1764110853112,2.85,138.13,138.1,1.75035925]
[1764110853313,2.85,138.11,138.1,0.05085176]
[1764110854123,2.85,138.11,138.03,2.64409844]
[1764110854318,2.85,138.11,138.01,101.485]
[1764110854319,2.85,138.09,138.07,1.7527671]
[1764110855123,2.90392366,138.09,138.07,0.04675463]
[1764110856333,2.85,138.08,137.99,2.64409844]
[1764110856624,2.85,138.07,138.05,1.75361505]
[1764110857331,2.85,138.06,138.05,1.75361505]
[1764110858724,2.85,138.06,138.04,1.75361505]
[1764110859132,27.87697206,138.07,138.05,1.75361505]
[1764110859331,27.87669836,138.07,138.01,101.4863]
[1764110859522,27.87669836,138.07,138.05,1.7534522]
[1764110860120,25.02669836,138.07,138.05,1.7534522]
[1764110860325,25.02669836,138.07,138.05,8.2756522]
[1764110860526,0.04669836,138.07,138.06,1.7534522]
[1764110860831,0.04669836,138.07,138.05,6.5222]
[1764110874342,0.04669836,138.07,138.06,1.75625906]
[1764110874838,0.04669836,138.07,138.05,6.5222]
[1764110875642,0.04669836,138.07,138.03,6.5229]
[1764110875834,0.04669836,138.07,138.06,1.75625465]
[1764110876949,2.95669836,138.07,138.06,1.75625465]
[1764110877138,2.95669836,138.07,138.04,6.5227]
[1764110877648,2.95669836,138.07,138.06,1.75688359]
[1764110877846,0.04669836,138.07,138.06,1.75688359]
[1764110881643,0.04669836,138.07,138.05,6.5223]
[1764110886366,3.08669836,138.07,138.05,6.5223]
[1764110888751,3.08669836,138.07,138.06,1.75940425]
[1764110889557,9.5624,138.05,138.01,6.5243]
[1764110889758,0.04672713,138.04,138.01,6.5243]
[1764110893053,3.08672713,138.04,138.01,6.5243]
[1764110893955,3.08672713,138.04,138.03,1.76356834]
[1764110894559,3.04,138.03,137.99,8.06106908]
[1764110894752,3.04,138.03,137.99,1.47]
[1764110894952,0.04672713,138.04,137.99,1.47]
[1764110894953,8.11317881,138.02,137.99,1.47]
[1764110895154,3.04,138.02,137.99,1.47]
[1764110895362,3.04,138.02,137.98,1.47]
[1764110895555,3.04,138.0,137.98,1.47]
[1764110896057,3.04,138.0,137.97,7.9957]
[1764110897256,3.08,137.98,137.96,1.47]
[1764110897457,3.08,137.98,137.95,8.06106908]
[1764110897652,3.13365034,137.98,137.95,1.47]
[1764110897858,3.08,137.97,137.95,1.47]
[1764110898666,3.13365034,137.98,137.95,1.47]
[1764110898866,0.05365034,137.98,137.95,1.47]
[1764110899059,0.05365034,137.98,137.96,1.47]
[1764110900058,0.05365034,137.98,137.96,7.9966]
[1764110900459,0.05365034,137.98,137.97,1.47]
[1764110907064,0.05365034,137.98,137.95,1.47]
[1764110907667,3.13365034,137.98,137.95,1.47]
[1764110907872,3.13365034,137.98,137.97,1.76138767]
[1764110910592,3.08,137.97,137.96,1.76138767]
[1764110910791,3.08,137.97,137.93,7.9979]
[1764110910992,3.08,137.97,137.96,1.76049231]
[1764110911790,0.05365034,137.98,137.94,1.47]
[1764110912394,0.05365034,137.98,137.97,1.47]
[1764110914297,0.05365034,137.98,137.97,7.9962]
[1764110919797,0.05365034,137.98,137.97,1.47]
[1764110927109,0.05365034,137.98,137.97,7.9962]
[1764110929418,5.07263539,138.03,138.0,1.42]
[1764110929603,3.05,138.04,138.02,3.1807892]
[1764110929804,3.05,138.04,138.02,1.42]
[1764110930009,3.05,138.06,138.02,3.1807857]
[1764110930209,8.12315268,138.05,138.03,1.42]
[1764110930508,5.07315268,138.04,138.03,1.46981818]
[1764110930810,3.09962219,138.05,138.03,1.46981818]
[1764110931605,3.05,138.09,138.04,1.42]
[1764110931807,3.05,138.07,138.05,1.76061758]
[1764110932414,5.0758748,138.06,138.05,1.81199252]
[1764110932711,5.0758748,138.06,138.05,0.05137494]
[1764110933014,5.0758748,138.06,138.05,1.81202611]
[1764110933320,5.0758748,138.06,138.05,0.05137494]
[1764110933614,5.0758748,138.06,138.05,1.8123374]
[1764110933815,5.0758748,138.06,138.05,0.05137494]
[1764110934014,5.0758748,138.06,138.05,1.8123374]
[1764110934216,5.0758748,138.06,138.05,0.05137494]
[1764110934513,5.0758748,138.06,138.05,1.8124164]
[1764110934709,5.0758748,138.06,138.05,0.05137494]
[1764110935014,5.0758748,138.06,138.05,1.8124164]
[1764110935515,3.09849992,138.07,138.05,0.05137494]
[1764110935716,3.09849992,138.07,138.05,1.81211083]
[1764110935917,3.09849992,138.07,138.05,0.05137494]
[1764110936218,3.09849992,138.07,138.05,1.81211083]
[1764110936407,3.09849992,138.07,138.05,0.05137494]
[1764110936716,3.09849992,138.07,138.05,1.81197259]
[1764110937015,3.09849992,138.07,138.05,0.05137494]
[1764110937313,3.09849992,138.07,138.05,1.81179373]
[1764110937518,3.09849992,138.07,138.05,0.05137494]
[1764110937813,5.07534906,138.06,138.05,1.81199617]
[1764110938019,5.07534906,138.06,138.05,0.05137494]
[1764110938206,5.07534906,138.06,138.05,1.8121496]
[1764110938409,5.07534906,138.06,138.05,0.05137494]
[1764110938708,5.07534906,138.06,138.05,1.8121496]
[1764110939015,5.07534906,138.06,138.05,0.05137494]
[1764110939314,5.07534906,138.06,138.05,1.8119469]
[1764110939514,0.04849992,138.07,138.05,7.99357494]
[1764110939818,0.04849992,138.07,138.06,3.18018166]
[1764110940112,3.06849992,138.07,138.05,6.57357494]
[1764110940312,3.06849992,138.07,138.06,1.76038895]
[1764110943714,0.04849992,138.07,138.06,3.18038895]
[1764110943917,0.04849992,138.07,138.06,1.76038895]
[1764110944116,0.04849992,138.07,138.06,1.75826418]
[1764110944320,0.04849992,138.07,138.06,3.17826418]
[1764110944502,0.04849992,138.07,138.06,1.42]
[1764110944703,0.04849992,138.07,138.06,3.17789623]
[1764110944907,0.04849992,138.07,138.06,1.42]
[1764110945218,3.02,138.13,138.09,1.42]
[1764110945409,101.3594,138.19,138.13,1.42]
[1764110945410,3.02,138.15,138.13,1.42]
[1764110945604,3.02,138.18,138.14,2.64464152]
[1764110945813,3.02,138.18,138.16,2.64464152]
[1764110946111,0.05360537,138.18,138.16,4.1145541]
[1764110946317,0.05360537,138.18,138.17,1.42]
[1764110946815,0.05360537,138.18,138.17,4.06464152]
[1764110947011,0.05360537,138.18,138.16,6.56701258]
[1764110947012,3.07360537,138.18,138.16,2.6945541]
[1764110947512,3.02,138.17,138.12,2.64464152]
[1764110948506,3.02,138.17,138.13,0.05465895]
[1764110948910,3.02,138.15,138.13,0.05465895]
[1764110952713,3.02,138.15,138.13,7.99315895]
[1764110952919,3.02,138.17,138.13,7.99315895]
[1764110953216,3.02,138.17,138.15,7.9375]
[1764110953418,3.07360537,138.18,138.14,1.42]
[1764110953624,3.07360537,138.18,138.16,1.74624388]
[1764110953825,0.05360537,138.18,138.17,1.74624388]
[1764110954118,0.05360537,138.18,138.16,7.98836688]
[1764110955310,3.07360537,138.18,138.17,1.74243035]
[1764110955622,3.02,138.17,138.09,1.42]
[1764110955826,3.02,138.17,138.13,1.74418193]
[1764110956417,3.02,138.15,138.14,0.04825646]
[1764110964135,27.96,138.15,138.14,0.04825646]
[1764110967538,3.02,138.15,138.14,0.04825646]
[1764110969326,9.5377,138.15,138.14,0.04825646]
[1764110971837,34.4777,138.15,138.14,0.04825646]
[1764110972534,9.5377,138.15,138.14,0.04825646]
[1764110972759,34.4777,138.15,138.14,0.04825646]
[1764110974144,27.96,138.15,138.14,0.04825646]
[1764110975145,8.09843075,138.16,138.14,0.04825646]
[1764110975756,3.06,138.15,138.14,0.04825646]
[1764110980358,8.06769225,138.15,138.14,0.04825646]
[1764110981044,5.00769225,138.15,138.14,0.04825646]
[1764110981649,8.06769225,138.15,138.14,0.04825646]
[1764110982758,8.06769225,138.15,138.14,6.56635646]
[1764110983059,3.10662811,138.16,138.14,6.56635646]
[1764110983357,8.07233414,138.15,138.14,6.56635646]
[1764110984160,8.07233414,138.15,138.14,0.04825646]
[1764111004782,5.01233414,138.15,138.14,1.45825646]
[1764111005478,8.12233414,138.15,138.14,0.04825646]
[1764111006475,8.12233414,138.15,138.14,6.56635646]
[1764111006775,8.12233414,138.15,138.14,7.97635646]
[1764111006776,5.01233414,138.15,138.14,7.97635646]
[1764111009078,3.15662811,138.16,138.15,6.5177]
[1764111009277,8.18678001,138.16,138.15,6.5177]
[1764111013674,5.07678001,138.16,138.15,7.9277]
[1764111026596,0.04662811,138.16,138.15,7.9277]
[1764111030895,6.5154,138.2,138.14,6.63932554]
[1764111030896,3.14,138.2,138.18,1.41]
[1764111031095,5.02423057,138.19,138.18,1.41]
[1764111031297,3.14,138.24,138.2,1.41]
[1764111031502,3.14,138.24,138.23,6.5139]
[1764111033499,0.05325819,138.25,138.24,1.41]
[1764111034102,3.19325819,138.25,138.23,7.9239]
[1764111034398,0.05325819,138.25,138.24,7.9234]
[1764111044217,3.19325819,138.25,138.24,6.5134]
[1764111044621,0.05325819,138.25,138.24,7.9234]
[1764111048226,2.93,138.31,138.28,1.34]
[1764111048827,2.93,138.31,138.29,6.5106]
[1764111049016,2.93,138.31,138.28,1.34]
[1764111049215,2.98049148,138.31,138.29,3.07855685]
[1764111049518,2.98049148,138.31,138.3,6.5106]
[1764111049919,4.42049148,138.31,138.3,6.5106]
[1764111050323,4.42049148,138.31,138.29,1.34]
[1764111050522,2.98049148,138.31,138.29,3.07800538]
[1764111050828,2.98049148,138.31,138.29,1.34]
[1764111051130,2.98049148,138.31,138.29,3.07832845]